{"text_format":"1","workbook":"xlsx","n_sheets":9,"sheets":["Debug","Sudoku","Easy","Medium","Hard","Expert","Extreme","Oh dear","Help"],"not_rendered":{"charts":0,"images":1,"macros":1,"external_links":0,"defined_names":65,"comments":0,"pivot_tables":0},"unopened":[],"bounds":{"document_bytes":16777216,"sheet_cells":100000,"rows_first":2000,"rows_last":500,"rows_between":2000,"halvings":0,"cell_chars":16384,"cell_head_chars":4096},"cells_cut":0,"cells_raw":0,"read":"whole","date_system":"1900"}

{"sheet":"Debug","index":0,"n_rows":60,"n_cols":14,"rows_kept":60,"cut":false,"hidden":true,"merged":[]}
[]
[null,"Possible values"]
[]
[null,16,2,16,5,4,89,19,3,7]
[null,4,57,57,789,1,3,259,58,6]
[null,9,357,8,67,267,27,1245,145,145]
[null,5,4,17,2,7,179,8,6,3,null,null,"No assistance",0]
[null,1237,37,127,346789,3678,14789,1459,145,1459,null,null,"Checking if correct",1]
[null,8,6,9,34,3,5,7,2,14,null,null,"Number highlight",2]
[null,27,1,3,478,5,6,4,9,48,null,null,"Next move",3]
[null,7,5789,57,3478,378,478,6,14578,2]
[null,267,578,4,1,9,278,3,578,58]
[]
[null,"Current Puzzle"]
[]
[null,null,2,null,5,4,null,null,3,7,null,null,"Conditional formatting",0]
[null,4,null,null,null,1,3,null,null,6,null,null,"Number to highlight",6]
[null,9,null,8]
[null,5,4,null,2,null,null,8,6,3]
[]
[null,8,6,9,null,null,5,7,2]
[null,null,1,3,null,5,6,null,9,null,null,"Next steps…."]
[null,null,null,null,null,null,null,6,null,2,null,null,"When you’ve made an error and click next move it goes a bit weird"]
[null,null,null,4,1,9,null,3,null,null,null,null,"add 1-10 for difficult puzzles"]
[]
[null,"Complete Puzzle"]
[]
[null,1,2,6,5,4,8,9,3,7]
[null,4,5,7,9,1,3,2,8,6]
[null,9,3,8,6,2,7,1,5,4]
[null,5,4,1,2,7,9,8,6,3]
[null,3,7,2,8,6,1,5,4,9]
[null,8,6,9,4,3,5,7,2,1]
[null,2,1,3,7,5,6,4,9,8]
[null,7,9,5,3,8,4,6,1,2]
[null,6,8,4,1,9,2,3,7,5]
[]
[null,"Next Move"]
[]
[null,0,0,0,0,0,0,1,0,0]
[null,0,0,0,0,1,0,0,0,0]
[null,1,0,0,0,0,0,0,0,1]
[null,0,0,0,0,0,0,0,0,0]
[null,0,1,0,1,0,0,0,0,0]
[null,0,0,0,0,0,0,0,0,0]
[null,0,0,0,0,0,0,0,0,0]
[null,0,1,0,0,0,0,1,0,0]
[null,0,0,0,0,1,0,0,0,0]
[]
[null,"Unsolve Grid"]
[]
[null,3,7,null,null,null,5,9,6,2]
[null,4,2,9,null,6,null,null,null,5]
[null,5,null,1,9,2,null,3,7]
[null,8,3,2,null,null,7,4,9]
[null,null,null,6,null,null,null,null,5]
[null,null,null,null,null,null,null,null,1,8]
[null,null,8,null,null,null,null,null,3]
[null,null,5,7,null,3,1,6,null,9]
[null,null,null,3,null,4,null,null,null,7]

{"sheet":"Sudoku","index":1,"n_rows":10,"n_cols":21,"rows_kept":10,"cut":false,"hidden":false,"merged":[]}
[null,null,null,null,null,null,null,null,null,null,null,null,null,null,null,null,null,null,false,6,3]
[null,null,2,null,5,4,null,null,3,7]
[null,4,null,null,null,1,3,null,null,6]
[null,9,null,8]
[null,5,4,null,2,null,null,8,6,3]
[]
[null,8,6,9,null,null,5,7,2]
[null,null,1,3,null,5,6,null,9]
[null,null,null,null,null,null,null,6,null,2]
[null,null,null,4,1,9,null,3]

{"sheet":"Easy","index":2,"n_rows":100,"n_cols":12,"rows_kept":100,"cut":false,"hidden":true,"merged":[]}
[]
[7,2,null,5,null,8,null,3]
[9,null,4,2,null,3,null,8]
[3]
[6,null,null,9,null,null,4,null,3]
[null,3,9,1,null,7,2,5]
[1,null,2,null,null,4,null,null,8]
[null,null,null,null,null,null,null,null,9]
[null,9,null,8,null,2,6,null,1]
[null,6,null,4,null,9,null,2,5]
[]
[2,null,null,null,null,null,4]
[null,8,null,4]
[3,null,4,6,8,null,5,1,9]
[5,null,8,null,null,4,9,3]
[null,null,7,2,null,5,6]
[null,4,3,1,null,null,7,null,2]
[7,9,5,null,1,6,2,null,3]
[null,null,null,null,null,7,null,9]
[null,null,1,null,null,null,null,null,5]
[]
[1,null,null,4,null,6,null,null,2]
[3,null,4,null,null,9,null,8]
[null,null,null,5,null,8,4,9]
[6,null,null,null,null,5,3]
[5,null,9,null,null,null,1,null,4]
[null,null,1,2,null,null,null,null,5]
[null,6,3,8,null,7]
[null,2,null,3,null,null,6,null,7]
[9,null,null,6,null,2,null,null,3]
[]
[null,null,null,7,null,5]
[null,null,7,6,3,8,null,1,9]
[5,null,null,null,null,null,7,null,2]
[6,3,null,2,8,null,null,9,7]
[null,7,null,null,null,null,null,2]
[2,4,null,null,1,7,null,8,5]
[1,null,6,null,null,null,null,null,3]
[7,5,null,8,9,3,2]
[null,null,null,5,null,1]
[]
[3,null,6,4,null,8,null,7,5]
[null,5,null,7,null,null,4]
[null,null,null,null,5]
[1,6,null,8,null,null,5,null,3]
[null,9,3,6,null,2,7,8]
[7,null,2,null,null,5,null,4,9]
[null,null,null,null,7]
[null,null,9,null,null,4,null,3]
[2,4,null,3,null,9,1,null,6]
[]
[null,null,null,null,3,1,null,7]
[null,3,null,null,null,null,6]
[2,7,null,null,6,4,null,null,3]
[7,1,null,null,null,9,5,null,8]
[5,null,3,8,null,6,2,null,7]
[6,null,2,1,null,null,null,9,4]
[1,null,null,7,8,null,null,3,6]
[null,null,7,null,null,null,null,8]
[null,4,null,6,9]
[]
[null,4,null,null,null,null,8]
[null,2,8,1,null,4,null,6]
[null,null,6,5,8,7]
[6,null,9,null,null,1,4,null,8]
[null,null,3,2,null,9,7]
[2,null,7,8,null,null,9,null,6]
[null,null,null,9,1,3,2]
[null,7,null,6,null,8,3,1]
[null,null,1,null,null,null,null,8]
[]
[null,6,null,null,null,9,null,2]
[1,null,null,4,null,null,9,null,8]
[null,null,null,6,null,null,7,4,5]
[null,3,null,null,8,null,4,7]
[null,null,5,null,9,null,6]
[null,4,6,null,3,null,null,8]
[2,7,1,null,null,8]
[4,null,9,null,null,5,null,null,7]
[null,5,null,2,null,null,null,9]
[null,null,null,null,null,null,null,null,null,null,null,"http://1sudoku.net/play/sudoku-free-online/sudoku-easy/"]
[9,null,null,3,null,6,2,null,null,null,null,"check grid"]
[null,7,3,null,8,null,null,9,1]
[null,1,null,null,null,7]
[null,null,null,null,7,2,8,null,9]
[1,9,null,null,null,null,null,5,2]
[2,null,7,4,5]
[null,null,null,5,null,null,null,1]
[4,2,null,null,9,null,5,3]
[null,null,1,7,null,3,null,null,4]
[]
[null,null,8,null,null,3,null,null,1]
[null,9,6,null,8,null,7]
[5,null,null,null,1,7,9]
[6,null,null,null,null,1,null,4,2]
[null,null,7,8,null,4,3]
[4,8,null,5,null,null,null,null,6]
[null,null,5,1,9,null,null,null,7]
[null,null,1,null,7,null,4,9]
[9,null,null,4,null,null,6]

{"sheet":"Medium","index":3,"n_rows":99,"n_cols":9,"rows_kept":99,"cut":false,"hidden":true,"merged":[]}
[1,null,null,9,null,null,null,6]
[null,6,null,8,null,5,9,null,4]
[null,3,null,6,null,4,null,null,1]
[4,null,null,null,7,6]
[null,null,null,null,8]
[null,null,null,1,4,null,null,null,2]
[5,null,null,4,null,8,null,2]
[3,null,6,7,null,1,null,5]
[null,9,null,null,null,3,null,null,6]
[]
[2,null,null,null,null,null,null,null,5]
[null,null,null,8,6,null,null,null,1]
[null,null,6,null,null,null,4]
[5,null,null,6,7,null,3]
[7,null,4,9,8,5,2,null,6]
[null,null,9,null,3,1,null,null,4]
[null,null,3,null,null,null,5]
[9,null,null,null,2,7]
[8,null,null,null,null,null,null,null,2]
[]
[5,null,null,null,null,7,1]
[null,3,null,null,8,null,null,5]
[4,null,null,null,1,2,9,null,8]
[null,null,null,null,7,5,null,null,9]
[null,9,null,null,null,null,null,6]
[8,null,null,6,4]
[7,null,3,8,5,null,null,null,4]
[null,1,null,null,6,null,null,7]
[null,null,8,7,null,null,null,null,1]
[]
[null,null,null,null,null,4,2]
[1,6,null,null,null,null,8]
[null,null,2,3,6,null,1,4]
[2,null,null,8,1,null,null,null,7]
[]
[8,null,null,null,4,7,null,null,2]
[null,9,5,null,2,8,4]
[null,null,8,null,null,null,null,9,5]
[null,null,1,5]
[]
[null,5,3,null,8]
[8,null,4,null,null,null,3,5]
[6,null,null,5,null,3]
[9,2,7,null,1,null,5]
[null,8,null,null,null,null,null,2]
[null,null,6,null,7,null,1,4,8]
[null,null,null,1,null,4,null,null,6]
[null,6,2,null,null,null,4,null,5]
[null,null,null,null,9,null,2,7]
[]
[null,5,7,8,null,null,null,3]
[null,null,null,7,4,null,9,6]
[null,null,null,null,2,6,null,7]
[null,2,null,null,null,null,3]
[null,null,4,null,3,null,7]
[null,null,3,null,null,null,null,4]
[null,1,null,6,7]
[null,6,2,null,1,8]
[null,7,null,null,null,3,6,9]
[]
[null,null,null,4,null,null,7,null,9]
[3]
[null,null,null,9,2,null,null,8,6]
[8,null,null,null,3,null,null,7,4]
[null,null,9,2,null,4,3]
[6,3,null,null,7,null,null,null,2]
[7,4,null,null,6,5]
[null,null,null,null,null,null,null,null,3]
[9,null,5,null,null,8]
[]
[1,7,2,3,null,8,null,6]
[null,3,null,null,null,6,7]
[6,8,null,null,7,null,9]
[null,null,null,null,null,null,4,7]
[null,null,null,9,null,1]
[null,2,5]
[null,null,7,null,5,null,null,8,3]
[null,null,8,6,null,null,null,9]
[null,6,null,2,null,7,1,4,5]
[]
[null,5,null,null,2,null,null,9]
[null,null,1,null,3,6,5,null,4]
[null,null,9,null,null,5,null,null,6]
[null,null,null,null,1,2,6]
[null,2,null,null,null,null,null,7]
[null,null,7,3,5]
[9,null,null,5,null,null,3]
[7,null,6,8,9,null,1]
[null,3,null,null,6,null,null,4]
[]
[null,null,null,null,null,null,null,4,7]
[3,null,null,5,2]
[null,null,null,null,null,8,2,null,3]
[8,null,null,6,1,null,null,7,4]
[null,1,3,4,null,2,9,8]
[4,7,null,null,3,9,null,null,5]
[9,null,7,2]
[null,null,null,null,5,3,null,null,8]
[6,5]

{"sheet":"Hard","index":4,"n_rows":99,"n_cols":9,"rows_kept":99,"cut":false,"hidden":true,"merged":[]}
[8,null,null,7]
[null,null,null,null,2,null,8,null,5]
[6,null,null,1,null,null,9,3]
[null,null,null,null,null,6,5]
[7,3,null,4,null,8,null,6,1]
[null,null,6,3]
[null,6,3,null,null,1,null,null,9]
[1,null,5,null,6]
[null,null,null,null,null,3,null,null,2]
[]
[null,null,2,null,7]
[7,null,null,9,null,4,null,2]
[null,null,6,null,null,3,null,null,8]
[1,null,9,null,null,null,null,8]
[null,8,null,null,9,null,null,6]
[null,5,null,null,null,null,9,null,7]
[8,null,null,2,null,null,4]
[null,9,null,3,null,5,null,null,2]
[null,null,null,null,1,null,3]
[]
[null,null,null,null,null,8,null,3,2]
[5,null,null,null,null,7,1]
[null,null,1,5,6]
[3,null,2,null,null,null,9]
[null,7,null,null,8,null,null,4]
[null,null,8,null,null,null,3,null,1]
[null,null,null,null,5,9,8]
[null,null,7,4,null,null,null,null,5]
[6,1,null,8]
[]
[9,null,null,2]
[2,null,4,null,5,null,6]
[null,null,null,7,8,null,null,4]
[null,null,null,6,null,null,null,null,5]
[null,1,6,null,9,null,8,7]
[3,null,null,null,null,7]
[null,4,null,null,3,6]
[null,null,5,null,7,null,9,null,8]
[null,null,null,null,null,5,null,null,1]
[]
[null,null,null,8,6,2,1]
[null,null,null,5,null,null,4,null,8]
[null,null,null,null,null,null,null,null,3]
[null,null,1,null,null,null,8,null,2]
[6,null,null,null,7,null,null,null,1]
[9,null,7,null,null,null,3]
[3]
[4,null,2,null,null,8]
[null,null,9,4,5,1]
[]
[null,3,null,4,null,null,null,null,6]
[null,null,9,null,null,5,8]
[null,4,null,8,1]
[null,8,null,null,null,1,7]
[3,null,4,null,null,null,9,null,5]
[null,null,7,2,null,null,null,8]
[null,null,null,null,9,8,null,3]
[null,null,8,6,null,null,1]
[1,null,null,null,null,4,null,9]
[]
[null,6,null,5,null,null,null,null,8]
[null,null,null,null,null,4,7]
[9,1,null,2,null,null,null,6]
[null,null,5,null,null,null,4,8]
[7,null,null,null,null,null,null,null,1]
[null,2,3,null,null,null,5]
[null,7,null,null,null,6,null,3,4]
[null,null,2,7]
[4,null,null,null,null,2,null,5]
[]
[null,null,null,null,8,null,null,null,9]
[9,null,6,null,5,null,null,1]
[null,null,null,null,null,9,null,7,8]
[1,null,5,null,2,8]
[null,3,null,null,null,null,null,9]
[null,null,null,9,6,null,8,null,1]
[4,6,null,7]
[null,7,null,null,1,null,3,null,4]
[8,null,null,null,9]
[]
[null,null,null,8,null,7,1,null,2]
[]
[null,null,null,null,1,4,null,8,7]
[7,null,1,null,null,null,4]
[null,null,6,null,3,null,5]
[null,null,2,null,null,null,7,null,6]
[2,8,null,9,5]
[]
[4,null,9,3,null,1]
[]
[null,null,2,9]
[null,5,3,null,7,null,null,9]
[null,null,null,1,6,null,null,null,8]
[null,null,null,7,null,null,6]
[7,3,null,null,5,null,null,1,2]
[null,null,9,null,null,1]
[8,null,null,null,3,7]
[null,1,null,null,9,null,4,8]
[null,null,null,null,null,4,5]

{"sheet":"Expert","index":5,"n_rows":99,"n_cols":9,"rows_kept":99,"cut":false,"hidden":true,"merged":[]}
[null,null,8,null,4,2]
[null,null,null,null,null,null,null,null,6]
[null,null,null,null,null,3,1,5]
[null,9,null,1,null,null,null,3,5]
[null,2,null,null,null,null,null,7]
[7,5,null,null,null,8,null,4]
[null,3,5,4]
[6]
[null,null,null,5,9,null,4]
[]
[null,null,null,2,null,null,null,7]
[null,null,null,null,null,6,8,null,5]
[null,null,null,4,null,null,3,null,1]
[8,null,null,null,4,null,5,null,9]
[3,null,null,null,null,null,null,null,6]
[6,null,4,null,5,null,null,null,8]
[9,null,5,null,null,7]
[1,null,2,3]
[null,3,null,null,null,8]
[]
[1,null,null,null,7,3]
[null,null,5,null,null,null,null,null,2]
[null,9,null,2,null,8,5]
[null,null,4,null,null,null,null,null,6]
[null,3,null,null,8,null,null,7]
[8,null,null,null,null,null,1]
[null,null,3,1,null,7,null,2]
[9,null,null,null,null,null,6]
[null,null,null,8,3,null,null,null,9]
[]
[9,null,null,null,2,3]
[null,null,7,null,4]
[null,8,null,7,null,null,5,3]
[8,null,null,null,null,6]
[4,2,null,null,null,null,null,9,6]
[null,null,null,2,null,null,null,null,4]
[null,5,1,null,null,8,null,4]
[null,null,null,null,7,null,1]
[null,null,null,6,1,null,null,null,3]
[]
[4,7,null,null,null,null,6,2]
[null,null,null,null,2,null,9,5]
[null,null,null,null,null,8,null,4]
[null,6,1,7]
[null,null,null,6,null,5]
[null,null,null,null,null,9,5,6]
[null,1,null,8]
[null,2,8,null,3]
[null,3,4,null,null,null,null,9,6]
[]
[7,null,null,null,null,null,null,null,4]
[3,null,null,2,5,null,7]
[null,null,null,null,1,6,null,3]
[null,null,null,null,null,2,1,8]
[null,null,null,null,3]
[null,5,2,9]
[null,6,null,3,2]
[null,null,4,null,7,5,null,null,8]
[9,null,null,null,null,null,null,null,2]
[]
[null,null,null,8,null,9]
[null,null,null,null,7,null,9,4]
[null,null,5,null,2,null,null,1,8]
[null,null,null,null,null,null,null,5,1]
[3,null,4,null,null,null,8,null,9]
[8,7]
[1,4,null,null,6,null,2]
[null,6,3,null,5]
[null,null,null,7,null,4]
[]
[null,null,4,2]
[null,2,null,1,8,9]
[null,6,null,null,null,null,null,null,9]
[3,1,null,null,null,7]
[9,null,null,null,null,null,null,null,5]
[null,null,null,6,null,null,null,9,2]
[7,null,null,null,null,null,null,2]
[null,null,null,5,3,2,null,1]
[null,null,null,null,null,8,4]
[]
[null,null,4,2,null,null,6,null,3]
[null,7,null,null,3,9]
[3,null,null,null,1]
[null,4,null,null,null,5]
[null,9,8,null,null,null,5,4]
[null,null,null,9,null,null,null,2]
[null,null,null,null,4,null,null,null,1]
[null,null,null,7,5,null,null,8]
[6,null,7,null,null,1,2]
[]
[null,null,null,null,null,null,null,null,7]
[7,4,null,null,null,2,5,null,3]
[null,null,3,7,null,4]
[6,null,null,null,null,9]
[5,9,null,null,null,null,null,6,1]
[null,null,null,4,null,null,null,null,2]
[null,null,null,6,null,5,7]
[8,null,5,9,null,null,null,1,6]
[3]

{"sheet":"Extreme","index":6,"n_rows":99,"n_cols":9,"rows_kept":99,"cut":false,"hidden":true,"merged":[]}
[null,null,null,null,null,null,null,3,6]
[null,null,null,null,null,9,7,null,8]
[null,null,8,5,null,null,1,4]
[null,null,9,null,5,8,null,6]
[null,null,null,4,null,1]
[null,7,null,3,9,null,2]
[null,8,1,null,null,3,5]
[7,null,3,6]
[9,2]
[]
[null,null,null,null,null,null,null,null,7]
[7,4,null,null,null,2,5,null,3]
[null,null,3,7,null,4]
[6,null,null,null,null,9]
[5,9,null,null,null,null,null,6,1]
[null,null,null,4,null,null,null,null,2]
[null,null,null,6,null,5,7]
[8,null,5,9,null,null,null,1,6]
[3]
[]
[null,null,null,null,null,null,null,6]
[null,null,6,3,null,7,null,null,4]
[null,5,null,6,8]
[null,6,9,null,7,null,null,8]
[null,null,5,9,null,6,4]
[null,2,null,null,4,null,6,9]
[null,null,null,null,2,8,null,1]
[1,null,null,7,null,9,3]
[null,8]
[]
[null,2,null,5,null,3]
[8,null,null,null,6]
[null,null,4,7,8]
[7,null,5,null,null,1,null,null,2]
[null,8,6,null,null,null,7,3]
[1,null,null,6,null,null,5,null,9]
[null,null,null,null,5,6,9]
[null,null,null,null,1,null,null,null,7]
[null,null,null,3,null,9,null,6]
[]
[null,null,3,null,null,7,null,null,2]
[5,7,null,null,2]
[1,null,null,3,null,8,7,null,6]
[7,null,null,null,null,null,4]
[null,4,null,null,null,null,null,3]
[null,null,9,null,null,null,null,null,1]
[8,null,7,6,null,2,null,null,3]
[null,null,null,null,9,null,null,8,5]
[9,null,null,1,null,null,2]
[]
[null,9,8,4]
[1,2,null,3]
[3,null,null,null,1,2]
[6,7,null,null,null,9,8]
[null,null,3,null,5,null,2]
[null,null,1,7,null,null,null,6,9]
[null,null,null,6,7,null,null,null,2]
[null,null,null,null,null,3,null,4,6]
[null,null,null,null,null,1,9,5]
[]
[3,null,null,8]
[null,null,9,1,2,null,null,7]
[null,1,null,null,7,null,8]
[6,5,null,9]
[null,7,8,null,6,null,1,5]
[null,null,null,null,null,1,null,2,8]
[null,null,4,null,1,null,null,8]
[null,8,null,null,3,7,2]
[null,null,null,null,null,8,null,null,5]
[]
[2,null,null,4,null,6,null,null,7]
[null,4,null,7,null,1,null,3]
[null,null,null,null,9]
[4,6,null,null,null,null,null,8,2]
[null,null,9,null,null,null,6]
[8,3,null,null,null,null,null,1,9]
[null,null,null,null,6]
[null,5,null,2,null,8,null,6]
[7,null,null,9,null,5,null,null,1]
[]
[9,null,null,6,null,null,null,null,8]
[null,null,null,null,null,2,4]
[null,null,null,4,8,null,null,1]
[3,null,2,null,null,9,null,8]
[null,null,6,null,5,null,3]
[null,7,null,1,null,null,5,null,4]
[null,9,null,null,7,1]
[null,null,5,9]
[7,null,null,null,null,4,null,null,5]
[]
[null,2,null,9,4,5]
[null,7,9,null,null,null,5,null,4]
[1,null,null,null,null,null,null,8]
[null,null,null,null,3]
[null,9,null,2,null,6,null,4]
[null,null,null,null,8]
[null,6,null,null,null,null,null,null,3]
[8,null,2,null,null,null,9,1]
[null,null,null,1,2,8,null,6]

{"sheet":"Oh dear","index":7,"n_rows":19,"n_cols":9,"rows_kept":19,"cut":false,"hidden":true,"merged":[]}
[8]
[null,null,3,6]
[null,7,null,null,9,null,2]
[null,5,null,null,null,7]
[null,null,null,null,4,5,7]
[null,null,null,1,null,null,null,3]
[null,null,1,null,null,null,null,6,8]
[null,null,8,5,null,null,null,1]
[null,9,null,null,null,null,4]
[]
[{"$f":"10-A1","v":2}]
[null,null,{"$f":"10-C2","v":7},{"$f":"10-D2","v":4}]
[null,{"$f":"10-B3","v":3},null,null,{"$f":"10-E3","v":1},null,{"$f":"10-G3","v":8}]
[null,{"$f":"10-B4","v":5},null,null,null,{"$f":"10-F4","v":3}]
[null,null,null,null,{"$f":"10-E5","v":6},{"$f":"10-F5","v":5},{"$f":"10-G5","v":3}]
[null,null,null,{"$f":"10-D6","v":9},null,null,null,{"$f":"10-H6","v":7}]
[null,null,{"$f":"10-C7","v":9},null,null,null,null,{"$f":"10-H7","v":4},{"$f":"10-I7","v":2}]
[null,null,{"$f":"10-C8","v":2},{"$f":"10-D8","v":5},null,null,null,{"$f":"10-H8","v":9}]
[null,{"$f":"10-B9","v":1},null,null,null,null,{"$f":"10-G9","v":6}]

{"sheet":"Help","index":8,"n_rows":14,"n_cols":3,"rows_kept":14,"cut":false,"hidden":false,"merged":[]}
[]
[null,null,"Invoice v1.0"]
[]
[]
[]
[null,null,"This free Sudoku game was brought to you by:"]
[null,null,"http://www.excel-macros.co.uk/"]
[null,null,"Please visit the site to download more free Excel tools and games"]
[null,null,"We really hope you enjoy playing this game."]
[]
[]
[null,null,"If you need any help or advice please contact us on:"]
[]
[null,null,"Great@Excel-Macros.co.uk"]